bitfinex-derivatives/quotes_BTCF0:USTF0_20251129
["timestamp","ask_amount","ask_price","bid_price","bid_amount"]
[1764429710680,0.41000007,91048.0,91047.0,0.22774]
[1764429711278,0.44374007,91048.0,91047.0,0.22774]
[1764429712075,0.21374007,91048.0,91047.0,0.22774]
[1764429712788,0.06830007,91048.0,91047.0,0.22774]
[1764429712986,0.43830007,91048.0,91047.0,0.22774]
[1764429713889,0.40374007,91048.0,91047.0,0.22774]
[1764429714386,0.43830007,91048.0,91047.0,0.22774]
[1764429715689,0.43830007,91048.0,91047.0,0.0749]
[1764429716683,0.43830007,91048.0,91047.0,0.03877]
[1764429716878,0.43830007,91048.0,91047.0,0.005]
[1764429717686,0.43830007,91048.0,91043.0,0.17328]
[1764429717687,0.07496,91044.0,91043.0,0.17328]
[1764429717892,0.57496,91044.0,91043.0,0.17328]
[1764429718889,0.4583,91044.0,91043.0,0.24453]
[1764429719698,0.4583,91044.0,91043.0,0.24553]
[1764429719891,0.4583,91044.0,91043.0,0.24953]
[1764429720189,7e-08,91048.0,91043.0,0.17828]
[1764429720393,0.35000007,91048.0,91047.0,0.0822305]
[1764429720989,0.41830007,91048.0,91047.0,0.0822305]
[1764429721189,0.41830007,91048.0,91043.0,0.03968]
[1764429721190,0.0683,91044.0,91043.0,0.03968]
[1764429721496,0.4783,91044.0,91043.0,0.03668]
[1764429721687,0.4783,91044.0,91043.0,0.07125]
[1764429723093,0.4783,91044.0,91043.0,0.07825]
[1764429723294,0.0783,91044.0,91043.0,0.07825]
[1764429723493,0.0783,91044.0,91043.0,0.07925]
[1764429723690,7e-08,91048.0,91043.0,0.007]
[1764429724000,0.41374007,91048.0,91047.0,0.07125]
[1764429724404,0.44830007,91048.0,91047.0,0.07125]
[1764429724695,0.44830007,91048.0,91047.0,0.0822305]
[1764429725091,0.41374007,91048.0,91047.0,0.0822305]
[1764429725298,0.38000007,91048.0,91047.0,0.0822305]
[1764429725697,0.05000007,91048.0,91047.0,0.0455505]
[1764429725904,0.05000007,91048.0,91047.0,0.0822305]
[1764429726403,0.05000007,91048.0,91047.0,0.16558992]
[1764429726610,7e-08,91048.0,91047.0,0.16658992]
[1764429726902,7e-08,91048.0,91047.0,0.28618556]
[1764429727297,7e-08,91048.0,91047.0,0.28118556]
[1764429727493,7e-08,91048.0,91047.0,0.29018556]
[1764429727906,7e-08,91048.0,91047.0,0.39018556]
[1764429728106,7e-08,91048.0,91047.0,0.38918556]
[1764429728400,7e-08,91048.0,91047.0,0.2912305]
[1764429728600,7e-08,91048.0,91047.0,0.6922305]
[1764429730499,7e-08,91048.0,91047.0,0.8655105]
[1764429731103,7e-08,91048.0,91047.0,0.8565105]
[1764429731396,7e-08,91048.0,91047.0,0.7665105]
[1764429733202,7e-08,91048.0,91047.0,0.7565105]
[1764429733404,7e-08,91048.0,91047.0,0.7675105]
[1764429734711,7e-08,91048.0,91047.0,0.96743425]
[1764429736914,7e-08,91048.0,91047.0,0.93175425]
[1764429737303,7e-08,91048.0,91047.0,1.03175425]
[1764429738502,7e-08,91048.0,91047.0,0.99718425]
[1764429742313,7e-08,91048.0,91047.0,0.98718425]
[1764429742513,7e-08,91048.0,91047.0,1.00018425]
[1764429744217,7e-08,91048.0,91047.0,0.98718425]
[1764429744417,7e-08,91048.0,91047.0,1.00018425]
[1764429745221,0.02471,91079.0,91078.0,0.0740268]
[1764429745422,0.04637447,91086.0,91085.0,0.06305]
[1764429745722,0.73637447,91086.0,91085.0,0.06305]
[1764429745921,0.04468,91129.0,91085.0,0.06305]
[1764429745922,0.00999999,91140.0,91086.0,0.0184]
[1764429746113,0.09804832,91168.0,91086.0,0.0184]
[1764429746114,0.0461,91117.0,91116.0,0.22798218]
[1764429746320,0.0461,91117.0,91116.0,0.20741]
[1764429746515,0.4761,91117.0,91116.0,0.20741]
[1764429746720,0.04637435,91126.0,91125.0,0.06305]
[1764429746925,0.47637435,91126.0,91125.0,0.06305]
[1764429747312,0.43637435,91126.0,91125.0,0.06305]
[1764429747627,0.00027435,91126.0,91125.0,0.06305]
[1764429748818,0.00027435,91126.0,91125.0,0.26297382]
[1764429749323,0.00027435,91126.0,91125.0,0.06605]
[1764429749324,0.04637435,91126.0,91125.0,0.06605]
[1764429750222,0.44637435,91126.0,91125.0,0.06605]
[1764429751840,0.44637435,91126.0,91125.0,0.06705]
[1764429752428,0.13637435,91126.0,91125.0,0.06705]
[1764429753542,0.00027435,91126.0,91125.0,0.06705]
[1764429754335,5e-08,91126.0,91125.0,0.06705]
[1764429754538,0.04637423,91166.0,91165.0,0.03249]
[1764429754726,0.04637423,91166.0,91160.0,0.0184]
[1764429754727,0.0461,91157.0,91156.0,0.03265454]
[1764429754931,0.8561,91157.0,91156.0,0.03265454]
[1764429755134,0.8561,91157.0,91156.0,0.00016454]
[1764429755833,0.8561,91157.0,91156.0,0.03265454]
[1764429756033,0.4161,91157.0,91156.0,0.06321454]
[1764429756628,1.2461,91157.0,91156.0,0.00016454]
[1764429756928,0.0461,91141.0,91140.0,0.17874037]
[1764429757139,0.0461,91131.0,91130.0,0.18269]
[1764429757442,0.0461,91129.0,91128.0,0.05089]
[1764429757643,0.4061,91129.0,91128.0,0.06524175]
[1764429757937,0.0461,91120.0,91119.0,0.00016454]
[1764429758239,0.4361,91120.0,91119.0,0.00016454]
[1764429758836,0.0461,91100.0,91096.0,0.0109745]
[1764429759036,0.3961,91100.0,91099.0,0.34579676]
[1764429760038,0.04626463,91109.0,91108.0,0.06305]
[1764429760232,0.40626463,91109.0,91108.0,0.06305]
[1764429760441,0.04626463,91109.0,91108.0,0.0740232]
[1764429760639,0.41626463,91109.0,91108.0,0.06305]
[1764429760842,0.0461,91104.0,91103.0,0.0740238]
[1764429761341,0.0461,91104.0,91099.0,0.47993366]
[1764429761342,0.02321463,91109.0,91108.0,0.0740232]
[1764429761540,0.45626463,91109.0,91108.0,0.06305]
[1764429762539,0.45626463,91109.0,91108.0,0.0740232]
[1764429762942,0.45626463,91109.0,91108.0,0.06305]
[1764429763138,0.0771,91101.0,91100.0,0.0773]
[1764429763342,0.0771,91100.0,91099.0,0.29695406]
[1764429763647,0.5071,91100.0,91099.0,0.29695406]
[1764429764947,0.51862,91100.0,91099.0,0.0142073]
[1764429765150,0.51862,91100.0,91099.0,0.004]
[1764429765549,0.5071,91100.0,91099.0,0.004]
[1764429767053,0.5071,91100.0,91099.0,0.04319]
[1764429767550,0.5071,91100.0,91099.0,0.004]
[1764429768751,0.5071,91100.0,91099.0,0.0813]
[1764429769052,0.5071,91100.0,91099.0,0.004]
[1764429769653,0.8880741,91100.0,91099.0,0.004]
[1764429769855,0.8880741,91100.0,91090.0,0.00016463]
[1764429769856,0.0771,91091.0,91090.0,0.00016463]
[1764429770056,0.4471,91091.0,91090.0,0.00016463]
[1764429770357,0.4871,91091.0,91090.0,0.00016463]
[1764429771051,0.0771,91091.0,91090.0,0.07746463]
[1764429771355,0.4571,91091.0,91090.0,0.08446463]
[1764429771555,0.4571,91091.0,91090.0,0.04635463]
[1764429771749,0.4571,91091.0,91090.0,0.08446463]
[1764429772746,0.1971,91091.0,91090.0,0.09793167]
[1764429773249,0.3871,91091.0,91090.0,0.09793167]
[1764429774349,0.0971,91091.0,91090.0,0.09793167]
[1764429774553,0.02,91091.0,91090.0,0.09793167]
[1764429775656,0.0771,91104.0,91103.0,0.0501638]
[1764429775848,0.5971,91104.0,91103.0,0.0501638]
[1764429776752,0.5971,91104.0,91103.0,0.0892738]
[1764429777554,0.71349603,91104.0,91103.0,0.0892738]
[1764429778255,0.71349603,91104.0,91103.0,0.001]
[1764429778651,0.87349603,91104.0,91103.0,0.001]
[1764429778845,0.88446963,91104.0,91103.0,0.001]
[1764429779549,0.87349603,91104.0,91103.0,0.001]
[1764429779750,0.0771,91096.0,91095.0,0.0882747]
[1764429779948,0.3271,91096.0,91095.0,0.0882747]
[1764429780145,0.0771,91096.0,91095.0,0.0882747]
[1764429780346,0.3471,91096.0,91095.0,0.0882747]
[1764429780751,0.31024,91096.0,91095.0,0.0882747]
[1764429780958,0.04040463,91109.0,91108.0,0.0882732]
[1764429781156,0.00016463,91109.0,91108.0,0.0882732]
[1764429781361,0.1829796,91140.0,91113.0,0.0109725]
[1764429781652,0.04024,91114.0,91113.0,0.0882725]
[1764429781853,0.3171,91114.0,91113.0,0.0882726]
[1764429782446,0.3171,91114.0,91113.0,0.0773]
[1764429783560,0.3171,91114.0,91113.0,0.0803]
[1764429783756,0.3280724,91114.0,91113.0,0.003]
[1764429783953,0.48597111,91114.0,91113.0,0.003]
[1764429784155,0.0771,91105.0,91104.0,0.00016463]
[1764429784355,0.4771,91105.0,91104.0,0.00016463]
[1764429786064,0.4771,91105.0,91104.0,0.05283384]
[1764429786257,0.4771,91105.0,91104.0,0.05483384]
[1764429786662,0.4771,91105.0,91104.0,0.05283384]
[1764429786956,0.4771,91105.0,91104.0,0.05383384]
[1764429787356,0.4771,91105.0,91104.0,0.01464384]
[1764429787552,0.59898851,91105.0,91104.0,0.01464384]
[1764429788957,1.00898851,91105.0,91104.0,0.01464384]
[1764429789159,1.00898851,91105.0,91104.0,0.00116463]
[1764429790062,0.07672,91095.0,91094.0,0.0582801]
[1764429790256,0.07672,91093.0,91092.0,0.0582801]
[1764429790558,0.07672,91091.0,91090.0,0.0582801]
[1764429790764,0.50672,91091.0,91090.0,0.0974701]
[1764429791868,0.50672,91091.0,91090.0,0.1355801]
[1764429792766,0.07672,91091.0,91090.0,0.1355801]
[1764429792961,0.11672,91091.0,91090.0,0.0813]
[1764429793158,0.42672,91091.0,91090.0,0.0813]
[1764429793463,0.35,91091.0,91090.0,0.0813]
[1764429794461,0.37887,91091.0,91090.0,0.0813]
[1764429794966,0.35,91091.0,91090.0,0.0813]
[1764429795165,0.05790463,91100.0,91099.0,0.06881]
[1764429795363,0.47790463,91100.0,91099.0,0.06881]
[1764429795574,0.59367768,91100.0,91099.0,0.06881]
[1764429795869,0.51367768,91100.0,91099.0,0.06881]
[1764429796357,0.51367768,91100.0,91099.0,0.12844535]
[1764429797361,0.52465178,91100.0,91099.0,0.05963535]
[1764429797560,0.51367768,91100.0,91099.0,0.001]
[1764429797762,0.51367768,91100.0,91099.0,0.05963535]
[1764429797960,0.34016463,91100.0,91099.0,0.06981]
[1764429798166,0.36721463,91100.0,91099.0,0.06981]
[1764429798367,0.39426463,91100.0,91099.0,0.06981]
[1764429798562,0.39426463,91100.0,91099.0,0.001]
[1764429798769,0.51940309,91100.0,91099.0,0.001]
[1764429798976,0.55940309,91100.0,91099.0,0.001]
[1764429799358,0.51940309,91100.0,91099.0,0.001]
[1764429799770,0.55940309,91100.0,91099.0,0.001]
[1764429800366,0.95940309,91100.0,91099.0,0.001]
[1764429800565,0.95940309,91100.0,91099.0,0.01490402]
[1764429800763,0.95940309,91100.0,91099.0,0.001]
[1764429804265,0.0541,91087.0,91086.0,0.05890746]
[1764429804466,0.4241,91087.0,91086.0,0.00027447]
[1764429804664,0.4350757,91087.0,91086.0,0.00027447]
[1764429806083,0.8650757,91087.0,91086.0,0.00427447]
[1764429807582,0.8650757,91087.0,91086.0,0.018305]
[1764429807985,0.0650763,91082.0,91078.0,0.00013972]
[1764429808186,0.0650767,91079.0,91078.0,0.00013972]
[1764429808497,0.065078,91068.0,91067.0,0.05863299]
[1764429808788,0.95461609,91068.0,91067.0,0.05863299]
[1764429808984,0.0650783,91065.0,91064.0,0.05863299]
[1764429809292,0.0541,91064.0,91063.0,0.06961149]
[1764429809595,0.40423972,91064.0,91063.0,0.10372149]
[1764429809788,0.40423972,91064.0,91063.0,0.13853149]
[1764429810086,0.40423972,91064.0,91063.0,0.12755299]
[1764429810285,0.40423972,91064.0,91063.0,0.06892]
[1764429810691,0.40423972,91064.0,91063.0,0.07392]
[1764429810892,0.40423972,91064.0,91063.0,0.005]
[1764429811295,0.5241404,91064.0,91063.0,0.005]
[1764429811490,0.5641404,91064.0,91063.0,0.005]
[1764429811694,0.5641404,91064.0,91063.0,0.006]
[1764429812493,0.5751189,91064.0,91063.0,0.006]
[1764429813089,0.5351189,91064.0,91063.0,0.006]
[1764429814198,0.5241404,91064.0,91063.0,0.006]
[1764429815696,0.5241404,91064.0,91063.0,0.04011]
[1764429816391,0.5241404,91064.0,91063.0,0.09599]
[1764429818100,0.9141404,91064.0,91063.0,0.09599]
[1764429818298,0.9141404,91064.0,91063.0,0.006]
[1764429819195,0.9141404,91064.0,91063.0,0.04011]
[1764429819402,0.9141404,91064.0,91063.0,0.006]
[1764429820596,0.9141404,91064.0,91063.0,0.04011]
[1764429820798,0.9141404,91064.0,91063.0,0.006]
[1764429825399,0.9141404,91064.0,91063.0,0.08668]
[1764429830905,0.9141404,91064.0,91063.0,0.03724]
[1764429831112,0.9141404,91064.0,91063.0,0.006]
[1764429832009,0.9141404,91064.0,91063.0,0.08668]
[1764429833104,0.9141404,91064.0,91063.0,0.0976586]
[1764429833303,0.9141404,91064.0,91063.0,0.08668]
[1764429833509,0.9141404,91064.0,91063.0,0.0976586]
[1764429833808,0.9141404,91064.0,91063.0,0.006]
[1764429845218,0.0539594,91056.0,91055.0,0.00016472]
[1764429845410,0.0379,91054.0,91053.0,0.05863299]
[1764429845607,0.01098,91051.0,91049.0,0.05863299]
[1764429845809,0.0488803,91049.0,91048.0,0.05863299]
[1764429846016,0.8388803,91049.0,91048.0,0.05863299]
[1764429846216,0.96366393,91049.0,91048.0,0.05863299]
[1764429846417,0.0379,91048.0,91047.0,0.05863299]
[1764429846617,0.7879,91048.0,91047.0,0.05863299]
[1764429846819,0.90719846,91048.0,91047.0,0.05863299]
[1764429847213,0.90119846,91048.0,91047.0,0.05863299]
[1764429847414,0.90119846,91048.0,91046.0,0.10365891]
[1764429847415,0.0368805,91047.0,91046.0,0.10365891]
[1764429847621,0.8168805,91047.0,91046.0,0.10365891]
[1764429847811,0.93833484,91047.0,91046.0,0.10365891]
[1764429848213,0.93833484,91047.0,91046.0,0.04502592]
[1764429848407,0.93833484,91047.0,91046.0,0.10379202]
[1764429849220,0.93733484,91047.0,91046.0,0.10379202]
[1764429849416,0.93733484,91047.0,91046.0,0.07255202]
[1764429849619,0.93747016,91047.0,91046.0,0.07355202]
[1764429850122,0.93747016,91047.0,91046.0,0.07455202]
[1764429850322,0.93747016,91047.0,91046.0,0.01578592]
[1764429853726,0.0106,91040.0,91039.0,0.00016472]
[1764429853926,1.03716776,91040.0,91039.0,2e-08]
[1764429854221,1.1624518,91040.0,91039.0,2e-08]
[1764429855213,1.16255504,91040.0,91039.0,2e-08]
[1764429855625,0.0215838,91020.0,91017.0,0.0134508]
[1764429855820,0.86170385,91020.0,91017.0,0.0134508]
[1764429856013,0.98337326,91020.0,91017.0,0.0134508]
[1764429856226,0.98337326,91020.0,91006.0,0.00027471]
[1764429856421,0.0215853,91007.0,91006.0,0.00027471]
[1764429856626,0.8115853,91007.0,91006.0,0.05769471]
[1764429856927,1.05412174,91007.0,91006.0,0.05769471]
[1764429857925,1.05412174,91007.0,91006.0,0.00027471]
[1764429858233,1.05412174,91007.0,91006.0,0.05769471]
[1764429858727,1.06512174,91007.0,91006.0,0.05869471]
[1764429858925,1.06512174,91007.0,91006.0,0.03053471]
[1764429859128,1.06512174,91007.0,91006.0,0.00127471]
[1764429860227,0.0208064,90998.0,90997.0,0.02810482]
[1764429860430,0.8308064,90998.0,90997.0,0.02810482]
[1764429860629,0.95200554,90998.0,90997.0,0.00016482]
[1764429861930,0.96100554,90998.0,90997.0,0.00116482]
[1764429862421,0.95001914,90998.0,90997.0,0.05821482]
[1764429863632,0.95001914,90998.0,90997.0,0.00116482]
[1764429866931,0.95001914,90998.0,90986.0,0.07386]
[1764429866932,0.0208077,90987.0,90986.0,0.07386]
[1764429867235,0.81091461,90987.0,90986.0,0.07386]
[1764429867619,1.05528186,90987.0,90986.0,0.07386]
[1764429868428,1.05528186,90987.0,90986.0,0.07486]
[1764429868630,0.38610691,90987.0,90986.0,0.07486]
[1764429870531,0.44610691,90987.0,90986.0,0.07486]
[1764429871234,0.45101691,90987.0,90986.0,0.087967]
[1764429871623,0.43691461,90987.0,90986.0,0.087967]
[1764429872021,0.42592691,90987.0,90986.0,0.087967]
[1764429872422,0.38610691,90987.0,90986.0,0.087967]
[1764429872632,0.42610691,90987.0,90986.0,0.087967]
[1764429872831,0.43592691,90987.0,90986.0,0.087967]
[1764429873228,0.76592691,90987.0,90986.0,0.087967]
[1764429878326,0.00610691,90987.0,90986.0,0.087967]
[1764429878531,0.00594246,90987.0,90986.0,0.087967]
[1764429878733,2.46e-06,90987.0,90986.0,0.087967]
[1764429878935,0.43170246,90987.0,90986.0,0.087967]
[1764429879234,0.41000246,90987.0,90986.0,0.087967]
[1764429879535,0.41009239,90987.0,90986.0,0.087967]
[1764429879726,0.03009239,90987.0,90986.0,0.087967]
[1764429879930,2.39e-06,90987.0,90986.0,0.087967]
[1764429880130,0.01094,91004.0,91003.0,0.05705]
[1764429880330,0.39094,91004.0,91003.0,0.05705]
[1764429880532,0.51736912,91004.0,91003.0,0.05705]
[1764429880734,0.63736912,91004.0,91003.0,0.05705]
[1764429881038,0.32830912,91004.0,91003.0,0.05705]
[1764429881235,0.36837998,91004.0,91003.0,0.05705]
[1764429881631,0.45837998,91004.0,91003.0,0.05805]
[1764429881831,0.41837998,91004.0,91003.0,0.05805]
[1764429882341,0.61743998,91004.0,91003.0,0.05805]
[1764429883037,0.15007086,91004.0,91003.0,0.05805]
[1764429883238,0.33007086,91004.0,91003.0,0.05805]
[1764429883943,0.01007086,91004.0,91003.0,0.1168161]
[1764429884240,0.01007086,91004.0,91003.0,0.05805]
[1764429885736,0.01007086,91004.0,91003.0,0.07107989]
[1764429887440,0.01007086,91004.0,91003.0,0.17107989]
[1764429887636,0.01007086,91004.0,91003.0,0.24915096]
[1764429887840,0.01007086,91004.0,91003.0,0.14915096]
[1764429888041,0.01007086,91004.0,91003.0,0.07107989]
[1764429888242,0.01007086,91004.0,91003.0,0.14915096]
[1764429888436,0.01007086,91004.0,91003.0,0.07107989]
[1764429890445,0.01007086,91004.0,91003.0,0.17107989]
[1764429890644,8.6e-07,91004.0,91003.0,0.17107989]
[1764429893546,0.00016482,91007.0,91006.0,0.05283]
[1764429893753,0.14906,91022.0,91021.0,0.05283]
[1764429894147,0.18906,91022.0,91021.0,0.05283]
[1764429894546,0.02906,91015.0,91014.0,0.06964]
[1764429896151,0.03306,91015.0,91014.0,0.06964]
[1764429896653,0.02906,91015.0,91014.0,0.06964]
[1764429896850,0.03106,91015.0,91014.0,0.06964]
[1764429898852,0.03106,91015.0,91014.0,0.08319697]
[1764429899657,0.0420444,91015.0,91014.0,0.08319697]
[1764429899860,0.03106,91015.0,91014.0,0.08319697]
[1764429900259,0.0420444,91015.0,91014.0,0.08319697]
[1764429900556,0.0420444,91015.0,91014.0,0.01355697]
[1764429900557,0.4720444,91015.0,91014.0,0.01355697]
[1764429900756,0.0400451,91009.0,91005.0,0.00016482]
[1764429900965,0.4700451,91009.0,91008.0,0.04284]
[1764429901158,0.58598005,91009.0,91008.0,0.04284]
[1764429901354,0.58598005,91009.0,91008.0,0.06964]
[1764429902155,0.20499495,91009.0,91008.0,0.06964]
[1764429902359,0.14499495,91009.0,91008.0,0.06964]
[1764429902663,0.0400442,91016.0,91015.0,0.05283]
[1764429902865,0.4000442,91016.0,91015.0,0.05283]
[1764429903064,0.52575869,91016.0,91015.0,0.05283]
[1764429903761,0.0400451,91009.0,91008.0,0.06964]
[1764429903961,0.0400451,91009.0,91008.0,0.08345196]
[1764429904362,0.16587885,91009.0,91008.0,0.06664196]
[1764429904659,0.16587885,91009.0,91008.0,0.03984196]
[1764429904965,0.61587885,91009.0,91008.0,0.01381196]
[1764429905165,0.0400455,91006.0,91005.0,0.02619482]
[1764429905362,0.4100455,91006.0,91005.0,0.02619482]
[1764429905561,0.53690601,91006.0,91005.0,0.00016482]
[1764429905867,0.53690601,91006.0,90994.0,0.05868882]
[1764429905868,0.0400467,90996.0,90994.0,0.05868882]
[1764429906063,0.02906,90994.0,90993.0,0.05868882]
[1764429906262,0.02906,90991.0,90989.0,0.05868882]
[1764429906458,0.02906,90991.0,90990.0,0.12832882]
[1764429906662,0.42906,90991.0,90990.0,0.06964]
[1764429907358,0.0400474,90990.0,90989.0,0.05868882]
[1764429907563,0.02906,90989.0,90988.0,0.05868882]
[1764429907759,0.47906,90989.0,90988.0,0.05868882]
[1764429907966,0.0400476,90988.0,90987.0,0.05868882]
[1764429908266,0.60106731,90988.0,90987.0,0.05868882]
[1764429908571,0.60106731,90988.0,90987.0,0.08471882]
[1764429909062,0.02906,90982.0,90981.0,0.00011066]
[1764429909268,0.42906,90982.0,90981.0,0.00011066]
[1764429909463,0.54417425,90982.0,90981.0,0.00011066]
[1764429910064,0.02906,90971.0,90969.0,0.05868882]
[1764429910266,0.02906,90964.0,90963.0,0.05283]
[1764429910470,0.38906,90964.0,90963.0,0.05283]
[1764429911170,0.38506,90964.0,90963.0,0.05283]
[1764429912060,0.38506,90964.0,90963.0,0.05583]
[1764429912461,0.06506,90964.0,90963.0,0.05583]
[1764429912860,0.33506,90964.0,90963.0,0.05583]
[1764429913061,0.45875935,90964.0,90963.0,0.05583]
[1764429913857,0.12369935,90964.0,90963.0,0.05583]
[1764429914057,0.00016482,90973.0,90972.0,0.0648]
[1764429914274,0.43804482,90973.0,90972.0,0.0648]
[1764429914574,0.55365997,90973.0,90972.0,0.0648]
[1764429914758,0.00788,90966.0,90965.0,0.0648]
[1764429915474,0.39788,90966.0,90965.0,0.0648]
[1764429916265,0.06788,90966.0,90965.0,0.0648]
[1764429917168,0.27788,90966.0,90965.0,0.0648]
[1764429917373,0.27788,90966.0,90958.0,0.08079134]
[1764429917374,0.00788,90959.0,90958.0,0.08079134]
[1764429918370,0.12264511,90966.0,90965.0,0.06401]
[1764429918573,0.5323198,90966.0,90965.0,0.06401]
[1764429919372,0.00016482,90973.0,90972.0,0.06401]
[1764429920570,0.00542482,90973.0,90972.0,0.06401]
[1764429920865,0.00542482,90973.0,90966.0,0.0109902]
[1764429920866,0.13040363,90973.0,90965.0,0.01541]
[1764429921070,0.0162503,90966.0,90965.0,0.06401]
[1764429921275,0.3962503,90966.0,90965.0,0.06401]
[1764429921475,0.51922911,90966.0,90965.0,0.06401]
[1764429923678,0.0109908,90962.0,90959.0,0.0486]
[1764429923977,0.00526,90960.0,90959.0,0.0486]
[1764429924279,0.42526,90960.0,90959.0,0.0486]
[1764429924675,0.19526,90960.0,90959.0,0.0506]
[1764429924980,0.206251,90960.0,90959.0,0.0506]
[1764429925173,0.206251,90960.0,90959.0,0.0496]
[1764429925470,0.206251,90960.0,90959.0,0.0516]
[1764429925671,0.19526,90960.0,90959.0,0.0625911]
[1764429926067,0.19526,90960.0,90959.0,0.0516]
[1764429927774,0.206251,90960.0,90959.0,0.0516]
[1764429929476,0.19526,90960.0,90959.0,0.0516]
[1764429929780,0.0162502,90967.0,90966.0,0.0486]
[1764429930077,0.52902618,90967.0,90966.0,0.0486]
[1764429930283,0.1162502,90967.0,90966.0,0.0486]
[1764429930583,0.3662502,90967.0,90966.0,0.0486]
[1764429931079,0.49096253,90967.0,90966.0,0.0486]
[1764429931883,0.49096253,90967.0,90965.0,0.01541]
[1764429931884,0.00526,90966.0,90965.0,0.06401]
[1764429932081,0.36526,90966.0,90965.0,0.06401]
[1764429932274,0.48336019,90966.0,90965.0,0.06401]
[1764429934182,0.14336019,90966.0,90965.0,0.06401]
[1764429934576,0.12336019,90966.0,90965.0,0.06401]
[1764429935487,0.54336019,90966.0,90965.0,0.06401]
[1764429935686,0.54336019,90966.0,90965.0,0.03912]
[1764429935977,0.016251,90960.0,90959.0,0.10728882]
[1764429936182,0.016251,90960.0,90959.0,0.0486]
[1764429936380,0.13120678,90960.0,90959.0,0.10750452]
[1764429936780,0.57120678,90960.0,90959.0,0.10750452]
[1764429937177,0.57120678,90960.0,90959.0,0.001]
[1764429937377,0.57120678,90960.0,90959.0,0.003]
[1764429937776,0.00526,90959.0,90958.0,0.01354134]
[1764429937977,0.43526,90959.0,90958.0,0.01354134]
[1764429938281,0.55444068,90959.0,90958.0,0.01354134]
[1764429939493,0.55444068,90959.0,90958.0,0.01554134]
[1764429940082,0.57785935,90959.0,90958.0,0.00212461]
[1764429940585,0.57885935,90959.0,90958.0,0.00112461]
[1764429940784,0.00526,90948.0,90947.0,0.0589388]
[1764429940982,0.44526,90948.0,90947.0,0.0589388]
[1764429941180,0.0162526,90947.0,90946.0,0.0589388]
[1764429941377,0.3862526,90947.0,90946.0,0.0589388]
[1764429941577,0.51014408,90947.0,90946.0,0.0589388]
[1764429941777,0.51024126,90947.0,90946.0,0.0589388]
[1764429941982,0.50924126,90947.0,90946.0,0.0589388]
[1764429942180,0.00526,90945.0,90944.0,0.0589388]
[1764429942382,0.0152529,90944.0,90943.0,0.0589388]
[1764429942574,0.4652529,90944.0,90943.0,0.0589388]
[1764429942783,0.0162535,90939.0,90938.0,0.0826488]
[1764429942985,0.4252535,90939.0,90938.0,0.0826488]
[1764429943185,0.55202216,90939.0,90937.0,0.02928387]
[1764429943387,0.54676216,90939.0,90937.0,0.01387387]
[1764429943683,0.0109944,90932.0,90931.0,0.0589388]
[1764429943891,0.0099944,90932.0,90931.0,0.1038588]
[1764429944079,0.54231639,90932.0,90931.0,0.04492]
[1764429944274,0.28232199,90932.0,90931.0,0.04492]
[1764429944475,0.12232199,90932.0,90931.0,0.04492]
[1764429944981,0.12364275,90936.0,90935.0,0.04492]
[1764429945188,0.37364275,90936.0,90935.0,0.04492]
[1764429945374,0.25,90936.0,90935.0,0.04492]
[1764429945685,0.37364275,90936.0,90935.0,0.04492]
[1764429946389,0.37564275,90936.0,90935.0,0.04492]
[1764429949683,0.12564275,90936.0,90935.0,0.04492]
[1764429952901,0.12564275,90936.0,90935.0,0.055914]
[1764429953085,0.12564275,90936.0,90935.0,0.04492]
[1764429955002,0.50564275,90936.0,90935.0,0.04492]
[1764429955189,0.50364275,90936.0,90935.0,0.04492]
[1764429955393,0.51264275,90936.0,90935.0,0.04492]
[1764429955903,0.51364275,90936.0,90935.0,0.04592]
[1764429956402,0.51464275,90936.0,90935.0,0.04592]
[1764429957688,0.22464275,90936.0,90935.0,0.056914]
[1764429957896,0.21464275,90936.0,90935.0,0.055914]
[1764429958091,0.22464275,90936.0,90935.0,0.056914]
[1764429958598,0.13464275,90936.0,90935.0,0.056914]
[1764429958993,0.12464275,90936.0,90935.0,0.055914]
[1764429959298,0.13364275,90936.0,90935.0,0.056914]
[1764429961099,0.01,90936.0,90935.0,0.056914]
[1764429961596,0.01,90936.0,90935.0,0.04592]
[1764429962194,0.01,90936.0,90935.0,0.1048588]
[1764429963203,0.01,90936.0,90935.0,0.04592]
[1764429964894,9.718e-05,90947.0,90946.0,0.04492]
[1764429965097,9.718e-05,90947.0,90946.0,0.0559127]
[1764429965696,9.718e-05,90947.0,90946.0,0.11479888]
[1764429966097,0.00109718,90947.0,90946.0,0.0559127]
[1764429966294,0.00641868,90947.0,90946.0,0.0569127]
[1764429966695,0.00016492,90956.0,90955.0,0.0559116]
[1764429966892,0.01698492,90956.0,90955.0,0.11481177]
[1764429967098,0.1410916,90956.0,90955.0,0.0559116]
[1764429967298,0.5110916,90956.0,90955.0,0.10382404]
[1764429967503,0.5110916,90956.0,90955.0,0.0559116]
[1764429967706,0.1810916,90956.0,90955.0,0.11481564]
[1764429967906,0.1890916,90956.0,90955.0,0.11481564]
[1764429968711,0.1910916,90956.0,90955.0,0.11481564]
[1764429969006,0.1426816,90956.0,90955.0,0.11481564]
[1764429969205,0.1342716,90956.0,90955.0,0.0559116]
[1764429969402,0.1426816,90956.0,90955.0,0.0559116]
[1764429969805,0.1510916,90956.0,90955.0,0.04492]
[1764429970006,0.1510916,90956.0,90955.0,0.10381831]
[1764429970207,0.5610916,90956.0,90955.0,0.10381831]
[1764429970604,0.5590916,90956.0,90955.0,0.10381831]
[1764429970811,0.5510916,90956.0,90955.0,0.10681831]
[1764429971203,0.5510916,90956.0,90955.0,0.02579]
[1764429971404,0.1410916,90956.0,90955.0,0.04892]
[1764429971614,0.5010916,90956.0,90955.0,0.04892]
[1764429972306,0.5010916,90956.0,90955.0,0.004]
[1764429973812,0.5010916,90956.0,90955.0,0.04804]
[1764429974918,0.2810916,90956.0,90955.0,0.04804]
[1764429975119,0.5910916,90956.0,90955.0,0.004]
[1764429975820,0.3510916,90956.0,90955.0,0.04804]
[1764429976514,0.00016492,90956.0,90955.0,0.04804]
[1764429976707,0.0207892,90976.0,90975.0,0.04404]
[1764429976909,0.3907892,90976.0,90975.0,0.04404]
[1764429977517,0.50522493,90976.0,90975.0,0.04404]
[1764429978214,0.50622493,90976.0,90975.0,0.04504]
[1764429978719,0.50622493,90976.0,90975.0,0.001]
[1764429980011,0.0207898,90970.0,90969.0,0.01516682]